[Event "Austria Championship Blitz 2024"]
[Site "Innsbruck"]
[Date "2024.06.01"]
[Round "9.14"]
[White "Keferboeck, Jewgeni"]
[Black "Kranzl, Peter"]
[Result "1/2-1/2"]
[ECO "B12"]
[WhiteElo "1957"]
[BlackElo "2157"]
[Annotator "RC"]
[PlyCount "196"]
[EventDate "2024.06.01"]
[EventType "swiss"]
[EventCountry "AUT"]
[SourceTitle "playchess.com"]
[Source "ChessBase"]
[SourceQuality "1"]
[TimeControl "180+2"]

1. e4 {[%emt 0:00:01]} c6 {[%emt 0:00:01]} 2. d4 {[%emt 0:00:01]} d5 {[%emt 0:00:01]} 3. e5 {[%emt 0:00:01]} Bf5 {[%emt 0:00:01]} 4. h4 {[%emt 0:00:01]} h5 {[%emt 0:00:03]} 5. Bd3 {[%emt 0:00:02]} Bxd3 {[%emt 0:00:01]} 6. Qxd3 {[%emt 0:00:01]} e6 {[%emt 0:00:02]} 7. Bg5 {[%emt 0:00:02]} Qa5+ {[%emt 0:00:02]} 8. Nd2 {[%emt 0:00:01]} Qa6 {[%emt 0:00:01]} 9. c4 {[%emt 0:00:01]} Nd7 {[%emt 0:00:03]} 10. Ngf3 {[%emt 0:00:02]} Ne7 {[%emt 0:00:02]} 11. O-O {[%emt 0:03:11]} dxc4 {[%emt 0:00:05]} 12. Nxc4 {[%emt 0:00:00]} Nd5 {[%emt 0:00:02]} 13. Rfd1 {[%emt 0:00:00]} N7b6 {[%emt 0:00:20]} 14. b3 {[%emt 0:00:00]} Nb4 {[%emt 0:00:20]} 15. Qe2 {[%emt 0:00:00]} Be7 {[%emt 0:00:14]} 16. a3 {[%emt 0:00:00]} N4d5 {[%emt 0:00:02]} 17. a4 {[%emt 0:00:00]} Nc3 {[%emt 0:00:15]} 18. Nd6+ {[%emt 0:00:00]} Bxd6 {[%emt 0:00:04]} 19. Qxa6 {[%emt 0:00:00]} bxa6 {[%emt 0:00:01]} 20. exd6 {[%emt 0:00:00]} Nxd1 {[%emt 0:00:02]} 21. Rxd1 {[%emt 0:00:00]} f6 {[%emt 0:00:05]} 22. Bf4 {[%emt 0:00:00]} Kd7 {[%emt 0:00:03]} 23. Nd2 {[%emt 0:00:00]} Nd5 {[%emt 0:00:27]} 24. Bg3 {[%emt 0:00:00]} Nc3 {[%emt 0:00:02]} 25. Re1 {[%emt 0:00:00]} Rab8 {[%emt 0:00:07]} 26. Kf1 {[%emt 0:00:00]} g5 {[%emt 0:00:06]} 27. hxg5 {[%emt 0:00:01]} fxg5 {[%emt 0:00:00]} 28. Be5 {[%emt 0:00:04]} Rhf8 {[%emt 0:00:01]} 29. Rc1 {[%emt 0:00:06]} Nd5 {[%emt 0:00:12]} 30. Ne4 {[%emt 0:00:01]} Rbe8 {[%emt 0:00:12]} 31. Nc5+ {[%emt 0:00:00]} Kd8 {[%emt 0:00:02]} 32. d7 {[%emt 0:00:15]} Re7 {[%emt 0:00:10]} 33. Bd6 {[%emt 0:00:01]} Rff7 {[%emt 0:00:05]} 34. Bxe7+ Rxe7 {[%emt 0:00:01]} 35. Re1 {[%emt 0:00:07]} Nc7 {[%emt 0:00:08]} 36. Re5 {[%emt 0:00:05]} Rg7 {[%emt 0:00:04]} 37. Ke2 {[%emt 0:00:05]} h4 {[%emt 0:00:01]} 38. Nxe6+ {[%emt 0:00:04]} Nxe6 {[%emt 0:00:50]} 39. Rxe6 {[%emt 0:00:01]} Kxd7 {[%emt 0:00:00]} 40. Rh6 {[%emt 0:00:01]} a5 {[%emt 0:00:00]} 41. Kd3 {[%emt 0:00:02]} Kc7 {[%emt 0:00:00]} 42. f3 {[%emt 0:00:00]} g4 {[%emt 0:00:00]} 43. Rxh4 {[%emt 0:00:02]} gxf3 {[%emt 0:00:00]} 44. gxf3 {[%emt 0:00:01]} Rg1 {[%emt 0:00:00]} 45. f4 {[%emt 0:00:03]} Rb1 {[%emt 0:00:00]} 46. Kc2 {[%emt 0:00:03]} Rf1 {[%emt 0:00:00]} 47. Kd3 {[%emt 0:00:02]} Rb1 {[%emt 0:00:00]} 48. Kc4 {[%emt 0:00:02]} Rc1+ {[%emt 0:00:00]} 49. Kd3 {[%emt 0:00:01]} Rb1 {[%emt 0:00:00]} 50. Kc3 {[%emt 0:00:04]} Rc1+ {[%emt 0:00:00]} 51. Kd2 {[%emt 0:00:01]} Rb1 {[%emt 0:00:00]} 52. Kc2 {[%emt 0:00:01]} Rf1 {[%emt 0:00:00]} 53. Kc3 {[%emt 0:00:05]} Rc1+ {[%emt 0:00:00]} 54. Kd2 {[%emt 0:00:01]} Rb1 {[%emt 0:00:00]} 55. Kc2 {[%emt 0:00:01]} Rf1 {[%emt 0:00:00]} 56. Rh7+ {[%emt 0:00:03]} Kb6 {[%emt 0:00:00]} 57. Rf7 {[%emt 0:00:01]} Rf3 {[%emt 0:00:00]} 58. f5 {[%emt 0:00:01]} a6 {[%emt 0:00:00]} 59. f6 {[%emt 0:00:01]} c5 {[%emt 0:00:00]} 60. dxc5+ {[%emt 0:00:01]} Kxc5 {[%emt 0:00:00]} 61. Rf8 {[%emt 0:00:04]} Rf2+ {[%emt 0:00:02]} 62. Kc3 {[%emt 0:00:03]} Rf3+ {[%emt 0:00:01]} 63. Kb2 {[%emt 0:00:00]} Kb6 {[%emt 0:00:07]} 64. f7 {[%emt 0:00:02]} Kb7 {[%emt 0:00:01]} 65. Kc2 {[%emt 0:00:04]} Ka7 {[%emt 0:00:21]} 66. Kb2 {[%emt 0:00:02]} Kb7 {[%emt 0:00:00]} 67. Kc2 {[%emt 0:00:01]} Ka7 {[%emt 0:00:01]} 68. Kd2 {[%emt 0:00:03]} Kb7 {[%emt 0:00:02]} 69. Ke2 {[%emt 0:00:01]} Rf6 {[%emt 0:00:01]} 70. Kd3 {[%emt 0:00:01]} Ka7 {[%emt 0:00:01]} 71. Ke4 {[%emt 0:00:01]} Rf1 {[%emt 0:00:02]} 72. Ke5 {[%emt 0:00:04]} Rf2 {[%emt 0:00:02]} 73. Ke6 {[%emt 0:00:02]} Re2+ {[%emt 0:00:04]} 74. Kf6 {[%emt 0:00:03]} Rf2+ {[%emt 0:00:02]} 75. Ke7 {[%emt 0:00:01]} Re2+ {[%emt 0:00:01]} 76. Kd6 {[%emt 0:00:02]} Rd2+ {[%emt 0:00:03]} 77. Kc5 {[%emt 0:00:02]} Rf2 {[%emt 0:00:01]} 78. b4 {[%emt 0:00:05]} axb4 {[%emt 0:00:02]} 79. Kxb4 {[%emt 0:00:01]} Rf5 {[%emt 0:00:02]} 80. a5 {[%emt 0:00:02]} Rf1 {[%emt 0:00:01]} 81. Kc4 {[%emt 0:00:02]} Rf2 {[%emt 0:00:02]} 82. Kb4 {[%emt 0:00:01]} Rf1 {[%emt 0:00:01]} 83. Kc5 {[%emt 0:00:01]} Rf2 {[%emt 0:00:01]} 84. Kc6 {[%emt 0:00:01]} Rf1 {[%emt 0:00:04]} 85. Kd6 {[%emt 0:00:02]} Rd1+ {[%emt 0:00:02]} 86. Kc5 {[%emt 0:00:01]} Rc1+ {[%emt 0:00:01]} 87. Kd4 {[%emt 0:00:01]} Rf1 {[%emt 0:00:02]} 88. Kc4 {[%emt 0:00:02]} Rf2 {[%emt 0:00:02]} 89. Kd5 {[%emt 0:00:01]} Rf1 {[%emt 0:00:03]} 90. Ke6 {[%emt 0:00:01]} Re1+ {[%emt 0:00:01]} 91. Kf5 {[%emt 0:00:00]} Rf1+ {[%emt 0:00:01]} 92. Kg6 {[%emt 0:00:01]} Rg1+ {[%emt 0:00:01]} 93. Kh5 {[%emt 0:00:01]} Rh1+ {[%emt 0:00:01]} 94. Kg4 {[%emt 0:00:01]} Rf1 {[%emt 0:00:01]} 95. Kg3 {[%emt 0:00:02]} Kb7 {[%emt 0:00:03]} 96. Kg2 {[%emt 0:00:01]} Rf6 {[%emt 0:00:01]} 97. Kg3 {[%emt 0:00:02]} Ka7 {[%emt 0:00:01]} 98. Kg4 {[%emt 0:00:01]} Rf1 {[%emt 0:00:02]} 1/2-1/2

[Event "Austria Championship Blitz 2024"]
[Site "Innsbruck"]
[Date "2024.06.01"]
[Round "9.15"]
[White "Froewis, Annika"]
[Black "Kuzmanovic, Zeljko"]
[Result "0-1"]
[ECO "B05"]
[WhiteElo "2075"]
[BlackElo "1866"]
[Annotator "RC"]
[PlyCount "64"]
[EventDate "2024.06.01"]
[EventType "swiss"]
[EventCountry "AUT"]
[SourceTitle "playchess.com"]
[Source "ChessBase"]
[SourceQuality "1"]
[TimeControl "180+2"]

1. e4 {[%emt 0:00:01]} Nf6 {[%emt 0:00:01]} 2. e5 {[%emt 0:00:01]} Nd5 {[%emt 0:00:00]} 3. c4 {[%emt 0:00:03]} Nb6 {[%emt 0:00:01]} 4. d4 {[%emt 0:00:01]} d6 {[%emt 0:00:01]} 5. exd6 {[%emt 0:00:01]} exd6 {[%emt 0:00:01]} 6. Nc3 {[%emt 0:03:07]} Nc6 {[%emt 0:03:10]} 7. Nf3 {[%emt 0:00:00]} Bg4 {[%emt 0:00:00]} 8. Be3 {[%emt 0:00:00]} Be7 {[%emt 0:00:00]} 9. Rc1 {[%emt 0:00:00]} O-O {[%emt 0:00:00]} 10. b3 {[%emt 0:00:00]} Re8 {[%emt 0:00:00]} 11. Be2 {[%emt 0:00:00]} Bf6 {[%emt 0:00:00]} 12. O-O {[%emt 0:00:00]} d5 {[%emt 0:00:00]} 13. c5 {[%emt 0:00:00]} Nc8 {[%emt 0:00:00]} 14. h3 {[%emt 0:00:00]} Bf5 {[%emt 0:00:00]} 15. Re1 {[%emt 0:00:00]} b6 {[%emt 0:00:00]} 16. Bb5 {[%emt 0:00:00]} N8e7 {[%emt 0:00:00]} 17. cxb6 {[%emt 0:00:00]} cxb6 {[%emt 0:00:00]} 18. Bg5 {[%emt 0:00:00]} Bxg5 {[%emt 0:00:00]} 19. Nxg5 {[%emt 0:00:00]} a6 {[%emt 0:00:00]} 20. Bxc6 {[%emt 0:00:00]} Nxc6 {[%emt 0:00:00]} 21. Rxe8+ {[%emt 0:00:00]} Qxe8 {[%emt 0:00:00]} 22. Nxd5 {[%emt 0:00:04]} Rd8 {[%emt 0:00:00]} 23. Rxc6 {[%emt 0:00:14]} Rxd5 {[%emt 0:00:00]} 24. Rxb6 {[%emt 0:00:04]} Bc8 {[%emt 0:00:00]} 25. Nf3 {[%emt 0:00:06]} Qd8 {[%emt 0:00:00]} 26. Rc6 {[%emt 0:00:02]} Bb7 {[%emt 0:00:00]} 27. Rc4 {[%emt 0:00:02]} h6 {[%emt 0:00:00]} 28. Qc2 {[%emt 0:00:05]} Rh5 {[%emt 0:00:00]} 29. Ne5 {[%emt 0:00:03]} Qg5 {[%emt 0:00:00]} 30. f3 {[%emt 0:00:04]} Rxh3 {[%emt 0:00:00]} 31. Rc7 {[%emt 0:00:03]} Qe3+ {[%emt 0:00:00]} 32. Kf1 {[%emt 0:00:05]} Rh1# {[%emt 0:00:52]} 0-1

[Event "Austria Championship Blitz 2024"]
[Site "Innsbruck"]
[Date "2024.06.01"]
[Round "9.16"]
[White "Schnegg, Anna-Lena"]
[Black "Wimmer, Michael"]
[Result "0-1"]
[ECO "A10"]
[WhiteElo "2124"]
[BlackElo "2142"]
[Annotator "RC"]
[PlyCount "52"]
[EventDate "2024.06.01"]
[EventType "swiss"]
[EventCountry "AUT"]
[SourceTitle "playchess.com"]
[Source "ChessBase"]
[SourceQuality "1"]
[TimeControl "180+2"]

1. c4 {[%emt 0:00:01]} b6 {[%emt 0:00:02]} 2. Nc3 {[%emt 0:00:02]} Bb7 {[%emt 0:00:05]} 3. e4 {[%emt 0:00:03]} e5 {[%emt 0:00:03]} 4. Nge2 {[%emt 0:00:04]} Nc6 {[%emt 0:00:02]} 5. g3 {[%emt 0:00:09]} g6 {[%emt 0:00:08]} 6. Bg2 {[%emt 0:00:01]} Bg7 {[%emt 0:00:01]} 7. O-O {[%emt 0:00:02]} Nge7 {[%emt 0:00:04]} 8. d3 {[%emt 0:00:03]} d6 {[%emt 0:00:10]} 9. f4 {[%emt 0:00:39]} f5 {[%emt 0:00:04]} 10. exf5 {[%emt 0:00:28]} Nxf5 {[%emt 0:00:04]} 11. fxe5 {[%emt 0:00:06]} Bxe5 {[%emt 0:00:11]} 12. d4 {[%emt 0:01:25]} Bg7 {[%emt 0:00:12]} 13. Kh1 {[%emt 0:00:08]} O-O {[%emt 0:00:04]} 14. d5 {[%emt 0:00:07]} Ne5 {[%emt 0:00:05]} 15. b3 {[%emt 0:00:02]} Ng4 {[%emt 0:00:07]} 16. Qd3 {[%emt 0:00:07]} Qe7 {[%emt 0:00:22]} 17. Nf4 {[%emt 0:00:03]} Nge3 {[%emt 0:00:16]} 18. Bxe3 {[%emt 0:00:02]} Nxe3 {[%emt 0:00:06]} 19. Rfe1 {[%emt 0:00:01]} Rae8 {[%emt 0:00:06]} 20. Ne6 {[%emt 0:00:00]} Nxg2 {[%emt 0:00:01]} 21. Kxg2 {[%emt 0:00:04]} Qf6 {[%emt 0:00:23]} 22. Ne4 {[%emt 0:00:02]} Qb2+ {[%emt 0:00:03]} 23. Kg1 {[%emt 0:00:02]} Rxe6 {[%emt 0:00:14]} 24. dxe6 {[%emt 0:00:01]} Bd4+ {[%emt 0:00:02]} 25. Kh1 {[%emt 0:00:03]} Rf2 {[%emt 0:00:06]} 26. Rf1 {[%emt 0:00:06]} Rxh2# {[%emt 0:00:04]} 0-1

[Event "Austria Championship Blitz 2024"]
[Site "Innsbruck"]
[Date "2024.06.01"]
[Round "9.17"]
[White "Khalakhan, Jurij"]
[Black "Leonov, Leonid"]
[Result "1-0"]
[ECO "A01"]
[WhiteElo "2175"]
[BlackElo "1739"]
[Annotator "RC"]
[PlyCount "103"]
[EventDate "2024.06.01"]
[EventType "swiss"]
[EventCountry "AUT"]
[SourceTitle "playchess.com"]
[Source "ChessBase"]
[SourceQuality "1"]
[TimeControl "180+2"]

1. b3 {[%emt 0:00:00]} e5 {[%emt 0:00:04]} 2. Bb2 {[%emt 0:00:02]} Nc6 {[%emt 0:00:01]} 3. c4 {[%emt 0:00:03]} Nf6 {[%emt 0:00:02]} 4. g3 {[%emt 0:00:01]} d5 {[%emt 0:00:01]} 5. d3 {[%emt 0:00:06]} Bd6 {[%emt 0:00:10]} 6. Bg2 {[%emt 0:00:01]} Be6 {[%emt 0:00:07]} 7. e3 {[%emt 0:00:02]} O-O {[%emt 0:00:03]} 8. Ne2 {[%emt 0:00:01]} Qe7 {[%emt 0:00:02]} 9. O-O {[%emt 0:00:02]} Rad8 {[%emt 0:00:02]} 10. Nbc3 {[%emt 0:00:04]} dxc4 {[%emt 0:00:04]} 11. bxc4 {[%emt 0:00:04]} a6 {[%emt 0:00:08]} 12. Rb1 {[%emt 0:00:04]} Na5 {[%emt 0:00:22]} 13. Qa4 {[%emt 0:00:07]} b6 {[%emt 0:00:04]} 14. Rfd1 {[%emt 0:00:01]} Bd7 {[%emt 0:00:04]} 15. Qc2 {[%emt 0:00:01]} Bc6 {[%emt 0:00:04]} 16. e4 {[%emt 0:00:03]} Bd7 {[%emt 0:00:11]} 17. Nd5 {[%emt 0:00:02]} Qe6 {[%emt 0:00:07]} 18. Ne3 {[%emt 0:00:16]} g6 {[%emt 0:00:07]} 19. Nc3 {[%emt 0:00:02]} c6 {[%emt 0:00:06]} 20. h4 {[%emt 0:00:01]} Bc7 {[%emt 0:00:05]} 21. Kh2 {[%emt 0:00:02]} Nb7 {[%emt 0:00:01]} 22. Ba3 {[%emt 0:00:35]} Rfe8 {[%emt 0:00:08]} 23. Qe2 {[%emt 0:00:01]} Ng4+ {[%emt 0:00:05]} 24. Nxg4 {[%emt 0:00:03]} Qxg4 {[%emt 0:00:03]} 25. f3 {[%emt 0:00:12]} Qh5 {[%emt 0:00:07]} 26. Qf2 {[%emt 0:00:06]} f5 {[%emt 0:00:10]} 27. Bc1 {[%emt 0:00:12]} Nc5 {[%emt 0:00:20]} 28. Be3 {[%emt 0:00:03]} f4 {[%emt 0:00:11]} 29. Bxc5 {[%emt 0:00:09]} bxc5 {[%emt 0:00:01]} 30. Rb7 {[%emt 0:00:11]} Bd6 {[%emt 0:00:03]} 31. g4 {[%emt 0:00:16]} Qh6 {[%emt 0:00:07]} 32. Rh1 {[%emt 0:00:14]} Re7 {[%emt 0:00:04]} 33. Rb6 {[%emt 0:00:15]} Ra8 {[%emt 0:00:09]} 34. h5 {[%emt 0:00:04]} g5 {[%emt 0:00:04]} 35. Rhb1 {[%emt 0:00:02]} Ree8 {[%emt 0:00:09]} 36. Bf1 {[%emt 0:00:02]} Qe6 {[%emt 0:00:04]} 37. Qb2 {[%emt 0:00:02]} h6 {[%emt 0:00:03]} 38. Be2 {[%emt 0:00:01]} Bf8 {[%emt 0:00:06]} 39. Bd1 {[%emt 0:00:01]} Be7 {[%emt 0:00:06]} 40. Ba4 {[%emt 0:00:01]} Rec8 {[%emt 0:00:02]} 41. Qf2 {[%emt 0:00:11]} Rc7 {[%emt 0:00:08]} 42. Bc2 {[%emt 0:00:01]} Bd8 {[%emt 0:00:02]} 43. Na4 {[%emt 0:00:02]} Qd6 {[%emt 0:00:07]} 44. Qxc5 {[%emt 0:00:05]} Qxc5 {[%emt 0:00:03]} 45. Nxc5 {[%emt 0:00:01]} Be8 {[%emt 0:00:03]} 46. Rb8 {[%emt 0:00:02]} Rc8 {[%emt 0:00:02]} 47. Rxa8 {[%emt 0:00:02]} Rxa8 {[%emt 0:00:01]} 48. Ba4 {[%emt 0:00:04]} Be7 {[%emt 0:00:01]} 49. Ne6 {[%emt 0:00:03]} Bd7 {[%emt 0:00:04]} 50. Nc7 {[%emt 0:00:09]} c5 {[%emt 0:00:01]} 51. Rb8+ {[%emt 0:00:02]} Kf7 {[%emt 0:00:03]} 52. Rb6 {[%emt 0:00:11]} 1-0

[Event "Austria Championship Blitz 2024"]
[Site "Innsbruck"]
[Date "2024.06.01"]
[Round "9.20"]
[White "Muehlbacher, Bernhard"]
[Black "Hatzl, Johannes"]
[Result "1-0"]
[ECO "D30"]
[WhiteElo "1960"]
[BlackElo "2074"]
[Annotator "RC"]
[PlyCount "89"]
[EventDate "2024.06.01"]
[EventType "swiss"]
[EventCountry "AUT"]
[SourceTitle "playchess.com"]
[Source "ChessBase"]
[SourceQuality "1"]
[TimeControl "180+2"]

1. c4 {[%emt 0:00:01]} e6 {[%emt 0:00:01]} 2. g3 {[%emt 0:00:00]} d5 {[%emt 0:00:01]} 3. Bg2 {[%emt 0:00:01]} Nf6 {[%emt 0:00:01]} 4. Nf3 {[%emt 0:00:02]} Be7 {[%emt 0:00:01]} 5. O-O {[%emt 0:00:01]} O-O {[%emt 0:00:01]} 6. b3 {[%emt 0:00:02]} c5 {[%emt 0:00:01]} 7. cxd5 {[%emt 0:00:03]} exd5 {[%emt 0:00:01]} 8. d4 {[%emt 0:00:02]} Nc6 {[%emt 0:00:07]} 9. Bb2 {[%emt 0:00:01]} Bf5 {[%emt 0:00:12]} 10. Nbd2 {[%emt 0:00:09]} Re8 {[%emt 0:00:19]} 11. Nh4 {[%emt 0:00:22]} Be6 {[%emt 0:00:01]} 12. dxc5 {[%emt 0:00:06]} Bxc5 {[%emt 0:00:04]} 13. e4 {[%emt 0:00:04]} Nxe4 {[%emt 0:00:14]} 14. Nxe4 dxe4 {[%emt 0:00:01]} 15. Bxe4 {[%emt 0:00:48]} Qb6 {[%emt 0:00:19]} 16. Qh5 {[%emt 0:00:11]} h6 {[%emt 0:00:06]} 17. Bg2 {[%emt 0:00:20]} Rad8 {[%emt 0:00:07]} 18. Rac1 {[%emt 0:00:01]} Bxf2+ {[%emt 0:00:39]} 19. Rxf2 {[%emt 0:00:04]} Rd2 {[%emt 0:00:00]} 20. Qc5 {[%emt 0:00:34]} Rxf2 {[%emt 0:00:06]} 21. Kxf2 {[%emt 0:00:04]} Qd8 {[%emt 0:00:07]} 22. Qc3 {[%emt 0:00:10]} Qb6+ {[%emt 0:00:10]} 23. Kf1 {[%emt 0:00:06]} Qb5+ {[%emt 0:00:03]} 24. Kg1 {[%emt 0:00:05]} f6 {[%emt 0:00:13]} 25. Bxc6 {[%emt 0:00:13]} bxc6 {[%emt 0:00:02]} 26. Qxc6 {[%emt 0:00:03]} Qb8 {[%emt 0:00:00]} 27. Ng6 {[%emt 0:00:08]} Bf7 {[%emt 0:00:07]} 28. Nf4 {[%emt 0:00:02]} Qe5 {[%emt 0:00:03]} 29. Bxe5 Rxe5 30. Qc8+ {[%emt 0:00:03]} Kh7 {[%emt 0:00:03]} 31. Nh5 {[%emt 0:00:01]} Bxh5 {[%emt 0:00:03]} 32. Rc7 {[%emt 0:00:01]} Bf3 {[%emt 0:00:20]} 33. Rc1 {[%emt 0:00:02]} Be4 {[%emt 0:00:10]} 34. Qb8 {[%emt 0:00:03]} Bg6 {[%emt 0:00:04]} 35. Qxa7 {[%emt 0:00:02]} Re2 {[%emt 0:00:02]} 36. b4 {[%emt 0:00:02]} Be4 {[%emt 0:00:02]} 37. b5 {[%emt 0:00:06]} Rg2+ {[%emt 0:00:01]} 38. Kf1 {[%emt 0:00:01]} Rxh2 {[%emt 0:00:01]} 39. Qg1 {[%emt 0:00:06]} Rxa2 {[%emt 0:00:05]} 40. Qe3 {[%emt 0:00:06]} Bg2+ {[%emt 0:00:08]} 41. Kg1 {[%emt 0:00:02]} h5 {[%emt 0:00:03]} 42. Qd3+ {[%emt 0:00:02]} g6 {[%emt 0:00:01]} 43. Qd7+ {[%emt 0:00:01]} Kh6 44. Qd8 {[%emt 0:00:03]} Be4 {[%emt 0:00:03]} 45. Rc5 {[%emt 0:00:01]} 1-0

[Event "Austria Championship Blitz 2024"]
[Site "Innsbruck"]
[Date "2024.06.01"]
[Round "9.21"]
[White "Erhard, Jakob"]
[Black "Thurner, Sebastian"]
[Result "1-0"]
[ECO "B14"]
[WhiteElo "2057"]
[BlackElo "1750"]
[Annotator "RC"]
[PlyCount "73"]
[EventDate "2024.06.01"]
[EventType "swiss"]
[EventCountry "AUT"]
[SourceTitle "playchess.com"]
[Source "ChessBase"]
[SourceQuality "1"]
[TimeControl "180+2"]

1. d4 {[%emt 0:00:01]} Nf6 {[%emt 0:00:04]} 2. c4 {[%emt 0:00:01]} c5 {[%emt 0:00:00]} 3. e3 {[%emt 0:00:02]} cxd4 {[%emt 0:00:08]} 4. exd4 {[%emt 0:00:01]} d5 {[%emt 0:00:06]} 5. Nf3 {[%emt 0:00:02]} e6 {[%emt 0:00:07]} 6. Nc3 {[%emt 0:00:01]} Bb4 {[%emt 0:00:01]} 7. Bg5 {[%emt 0:00:02]} h6 {[%emt 0:00:31]} 8. Bh4 {[%emt 0:00:00]} g5 {[%emt 0:00:10]} 9. Bg3 {[%emt 0:00:01]} Ne4 {[%emt 0:00:01]} 10. Qc2 {[%emt 0:00:03]} Qa5 {[%emt 0:00:09]} 11. Nd2 {[%emt 0:00:11]} Nxc3 {[%emt 0:00:05]} 12. bxc3 {[%emt 0:00:01]} Bxc3 {[%emt 0:00:07]} 13. Rd1 {[%emt 0:00:02]} Nc6 {[%emt 0:00:25]} 14. cxd5 {[%emt 0:00:23]} exd5 {[%emt 0:00:21]} 15. Bd3 {[%emt 0:00:05]} Nxd4 {[%emt 0:00:11]} 16. Qc1 {[%emt 0:00:01]} O-O {[%emt 0:00:18]} 17. O-O {[%emt 0:00:02]} Bf5 {[%emt 0:00:18]} 18. Nb3 {[%emt 0:00:08]} Nxb3 {[%emt 0:00:07]} 19. axb3 {[%emt 0:00:03]} Bxd3 {[%emt 0:00:04]} 20. Rxd3 {[%emt 0:00:01]} d4 {[%emt 0:00:01]} 21. h4 {[%emt 0:00:03]} Rae8 {[%emt 0:00:02]} 22. hxg5 {[%emt 0:00:03]} Qxg5 {[%emt 0:00:00]} 23. Bf4 {[%emt 0:00:02]} Qg6 {[%emt 0:00:02]} 24. Rfd1 {[%emt 0:00:02]} Re6 {[%emt 0:00:03]} 25. Rg3 {[%emt 0:00:01]} Rfe8 {[%emt 0:00:07]} 26. Rxg6+ {[%emt 0:00:02]} fxg6 {[%emt 0:00:00]} 27. Kh2 {[%emt 0:00:09]} g5 {[%emt 0:00:06]} 28. Bg3 {[%emt 0:00:01]} Kg7 {[%emt 0:00:10]} 29. Qc2 {[%emt 0:00:02]} b5 {[%emt 0:00:07]} 30. Qd3 {[%emt 0:00:01]} b4 {[%emt 0:00:01]} 31. Qc4 {[%emt 0:00:02]} Re2 {[%emt 0:00:04]} 32. Rd3 {[%emt 0:00:09]} R2e4 {[%emt 0:00:02]} 33. Rf3 {[%emt 0:00:02]} R8e7 {[%emt 0:00:03]} 34. Qd5 {[%emt 0:00:03]} d3 {[%emt 0:00:05]} 35. Qxd3 {[%emt 0:02:19]} Rd4 36. Qf5 {[%emt 0:00:00]} Rh4+ {[%emt 0:00:05]} 37. Bxh4 {[%emt 0:00:00]} 1-0

[Event "Austria Championship Blitz 2024"]
[Site "Innsbruck"]
[Date "2024.06.01"]
[Round "9.22"]
[White "Guba, Viktor"]
[Black "Schranzhofer, Marco"]
[Result "0-1"]
[ECO "B10"]
[WhiteElo "1891"]
[BlackElo "1908"]
[Annotator "RC"]
[PlyCount "102"]
[EventDate "2024.06.01"]
[EventType "swiss"]
[EventCountry "AUT"]
[SourceTitle "playchess.com"]
[Source "ChessBase"]
[SourceQuality "1"]
[TimeControl "180+2"]

1. e4 {[%emt 0:00:01]} c6 {[%emt 0:00:04]} 2. Nf3 {[%emt 0:03:05]} d5 3. exd5 {[%emt 0:00:00]} cxd5 {[%emt 0:00:02]} 4. Ne5 {[%emt 0:00:00]} Nc6 {[%emt 0:00:01]} 5. d4 {[%emt 0:00:00]} Nf6 {[%emt 0:00:06]} 6. Bb5 {[%emt 0:00:00]} Bd7 {[%emt 0:00:01]} 7. Nxd7 {[%emt 0:00:00]} Qxd7 {[%emt 0:00:02]} 8. c3 {[%emt 0:00:00]} a6 {[%emt 0:00:01]} 9. Bd3 {[%emt 0:00:00]} e6 {[%emt 0:00:01]} 10. O-O {[%emt 0:00:00]} Rc8 {[%emt 0:00:01]} 11. Nd2 {[%emt 0:00:00]} Bd6 {[%emt 0:00:04]} 12. f4 {[%emt 0:00:00]} Qc7 {[%emt 0:00:11]} 13. g3 {[%emt 0:00:00]} Ne7 {[%emt 0:00:34]} 14. Nf3 {[%emt 0:00:00]} Ne4 {[%emt 0:00:04]} 15. Re1 {[%emt 0:00:00]} f5 {[%emt 0:00:06]} 16. Ne5 {[%emt 0:00:00]} Bxe5 {[%emt 0:00:02]} 17. fxe5 {[%emt 0:00:00]} O-O {[%emt 0:00:16]} 18. Be3 {[%emt 0:00:00]} Nc6 {[%emt 0:00:29]} 19. Rc1 {[%emt 0:00:00]} Qb6 {[%emt 0:00:38]} 20. b4 {[%emt 0:00:00]} Na7 {[%emt 0:00:08]} 21. Qb3 {[%emt 0:00:00]} Nb5 {[%emt 0:00:07]} 22. Bxe4 {[%emt 0:00:00]} fxe4 {[%emt 0:00:03]} 23. a4 {[%emt 0:00:00]} Na7 {[%emt 0:00:12]} 24. c4 {[%emt 0:00:00]} dxc4 {[%emt 0:00:05]} 25. Rxc4 {[%emt 0:00:00]} Rxc4 {[%emt 0:00:03]} 26. Qxc4 {[%emt 0:00:00]} Qc6 {[%emt 0:00:05]} 27. Qb3 {[%emt 0:00:06]} Rf3 {[%emt 0:00:14]} 28. Qb2 {[%emt 0:00:17]} Qd5 {[%emt 0:00:04]} 29. Qe2 {[%emt 0:00:13]} Nc6 {[%emt 0:00:02]} 30. Qd2 {[%emt 0:00:13]} h6 {[%emt 0:00:11]} 31. Rc1 {[%emt 0:00:04]} Kh7 {[%emt 0:00:02]} 32. Rc5 {[%emt 0:00:04]} Qb3 {[%emt 0:00:01]} 33. Rc3 {[%emt 0:00:01]} Qb1+ {[%emt 0:00:01]} 34. Rc1 {[%emt 0:00:01]} Qd3 {[%emt 0:00:05]} 35. Qxd3 {[%emt 0:00:01]} exd3 {[%emt 0:00:00]} 36. Bf2 {[%emt 0:00:03]} d2 {[%emt 0:00:03]} 37. Rd1 {[%emt 0:00:01]} Rd3 {[%emt 0:00:01]} 38. Kf1 {[%emt 0:00:01]} Nxd4 {[%emt 0:00:01]} 39. Bxd4 {[%emt 0:00:02]} Rxd4 {[%emt 0:00:01]} 40. b5 {[%emt 0:00:03]} axb5 {[%emt 0:00:00]} 41. axb5 {[%emt 0:00:00]} Rd5 {[%emt 0:00:01]} 42. Kf2 {[%emt 0:00:03]} b6 {[%emt 0:00:04]} 43. Kf3 {[%emt 0:00:06]} Kg6 {[%emt 0:00:01]} 44. Ke4 {[%emt 0:00:02]} Kf7 {[%emt 0:00:02]} 45. Rf1+ {[%emt 0:00:02]} Ke7 {[%emt 0:00:01]} 46. Rd1 {[%emt 0:00:00]} g6 {[%emt 0:00:01]} 47. Ke3 {[%emt 0:00:02]} Rxe5+ {[%emt 0:00:01]} 48. Kxd2 {[%emt 0:00:02]} Rd5+ {[%emt 0:00:01]} 49. Kc2 {[%emt 0:00:01]} Rxd1 {[%emt 0:00:02]} 50. Kxd1 {[%emt 0:00:00]} Kd6 {[%emt 0:00:01]} 51. Kd2 {[%emt 0:00:01]} Kc5 {[%emt 0:00:00]} 0-1